fUSD/lending_fUSD_20240127
["ID","MTS","AMOUNT","RATE_DAILY","PERIOD"]
[312880055,1706398238969,-152.4,0.00026899,2]
[312880056,1706398238979,-600.0,0.00027,3]
[312880057,1706398238987,-174.67,0.00027189,2]
[312880058,1706398238996,-152.4,0.00027646,2]
[312880059,1706398239005,-270.68,0.00027671,2]
[312880060,1706398239014,-231.32,0.00027681,2]
[312880061,1706398239023,-1267.73,0.00027688,2]
[312880062,1706398239031,-3829.86922439,0.00027809,2]
[312880063,1706398239040,-2760.43318063,0.000283,2]
[312880069,1706398240924,-1115.62375037,0.000283,2]
[312880070,1706398240980,-1693.943069,0.000283,2]
[312880071,1706398240988,-152.4,0.00028394,2]
[312880072,1706398240997,-800.0,0.00028547,2]
[312880073,1706398241006,-174.67,0.00028559,2]
[312880074,1706398241016,-200.0,0.00028695,2]
[312880075,1706398241025,-270.68,0.00028695,2]
[312880076,1706398241034,-152.4,0.00029141,2]
[312880077,1706398241043,-1267.73,0.00029332,2]
[312880078,1706398241052,-270.68,0.00029719,2]
[312880079,1706398241062,-152.4,0.00029888,2]
[312880080,1706398241073,-174.67,0.00029929,2]
[312880081,1706398241082,-231.32,0.00029945,2]
[312880082,1706398241092,-608.11910161,0.00029999,2]
[312880083,1706398241101,-162.61868369,0.00029999,2]
[312880084,1706398241110,-18647.18012398,0.0003,2]
[312880085,1706398241119,-199.07930731,0.0003,4]
[312880086,1706398241128,-463.0140657,0.0003,4]
[312880087,1706398241137,-19030.15880066,0.0003,4]
[312880088,1706398241146,-432.87852112,0.0003,4]
[312880089,1706398241155,-110653.67386715,0.0003,4]
[312880090,1706398241164,-815.17255794,0.0003,4]
[312880091,1706398241172,-157.22023209,0.0003,4]
[312880092,1706398241182,-270.00164688,0.0003,4]
[312880093,1706398241191,-4491.71643015,0.0003,4]
[312880094,1706398241200,-905.6449554,0.0003,4]
[312880095,1706398241209,-1806.73038291,0.0003,4]
[312880096,1706398241220,-156.56426709,0.0003,4]
[312880097,1706398241229,-176.42392001,0.0003,4]
[312880098,1706398241238,-8020.62788537,0.0003,4]
[312880099,1706398241247,-448.21877219,0.0003,4]
[312880100,1706398241255,-155.9174196,0.0003,4]
[312880101,1706398241265,-155.0,0.0003,2]
[312880102,1706398241274,-23591.60919883,0.0003,3]
[312880103,1706398241283,-1000.0,0.0003,2]
[312880104,1706398241292,-1435.59868,0.0003,2]
[312880105,1706398241301,-565.93811123,0.0003,2]
[312880106,1706398241717,-869.66056877,0.0003,2]
[312880107,1706398241727,-1203.9688938,0.000301,2]
[312880108,1706398241736,-3829.86922439,0.00030264,2]
[312880109,1706398241745,-152.4,0.00030635,2]
[312880110,1706398241754,-270.68,0.00030743,2]
[312880111,1706398241763,-1267.73,0.00030976,2]
[312880112,1706398241773,-155.1395178,0.00031,4]
[312880113,1706398241782,-1435.59868,0.0003127,2]
[312880114,1706398241791,-174.67,0.00031298,2]
[312880115,1706398241803,-152.4,0.00031382,2]
[312880116,1706398241813,-800.0,0.00031401,2]
[312880117,1706398241822,-270.68,0.00031767,2]
[312880118,1706398241832,-200.0,0.00031883,2]
[312880119,1706398241841,-13219.92658564,0.00032,4]
[312880120,1706398241851,-152.4,0.0003213,2]
[312880121,1706398241860,-231.32,0.00032209,2]
[312880122,1706398241869,-3829.86922439,0.00032718,4]
[312880124,1706398241880,-319.5499989,0.00032797,2]
[312880126,1706398241890,-516651.29478829,0.000328,2]
[312880128,1706398241899,-164.7,0.00032877,15]
[312880130,1706398241907,-152.4,0.00032877,2]
[312880132,1706398241917,-300000.0,0.00033,4]
[312880134,1706398241926,-2000.0,0.000333,4]
[312880136,1706398241935,-167.0,0.0003339,2]
[312880138,1706398241944,-152.93,0.000335,2]
[312880140,1706398241953,-152.93,0.000335,2]
[312880142,1706398241962,-152.93,0.000335,2]
[312880144,1706398241971,-152.93,0.000335,2]
[312880146,1706398241980,-152.93,0.000335,2]
[312880148,1706398241990,-152.93,0.000335,2]
[312880150,1706398241999,-152.93,0.000335,2]
[312880152,1706398242008,-152.93,0.000335,2]
[312880154,1706398242017,-152.93,0.000335,2]
[312880156,1706398242026,-152.93,0.000335,2]
[312880158,1706398242035,-152.93,0.000335,2]
[312880160,1706398242044,-152.93,0.000335,2]
[312880162,1706398242053,-152.93,0.000335,2]
[312880164,1706398242062,-152.93,0.000335,2]
[312880166,1706398242071,-152.93,0.000335,2]
[312880168,1706398242080,-152.93,0.000335,2]
[312880170,1706398242089,-1435.59868,0.0003377,2]
[312880172,1706398242098,-507.31895461,0.00034,4]
[312880174,1706398242107,-156.05994652,0.00034,4]
[312880176,1706398242116,-289.24494993,0.00034255,2]
[312880178,1706398242125,-800.0,0.00034256,2]
[312880180,1706398242135,-231.32,0.00034473,2]
[312880182,1706398242144,-167.0,0.00034492,2]
[312880184,1706398242153,-260.35,0.000347,2]
[312880186,1706398242162,-4188.19494022,0.000349,2]
[312880188,1706398242171,-2333.94258726,0.000349,2]
[312880190,1706398242180,-2333.9425872,0.000349,2]
[312880192,1706398242189,-2333.9425872,0.000349,2]
[312880194,1706398242198,-2333.9425872,0.000349,2]
[312880196,1706398242207,-2333.9425872,0.000349,2]
[312880198,1706398242216,-2333.9425872,0.000349,2]
[312880199,1706398242226,-2333.9425872,0.000349,2]
[312880200,1706398242235,-2333.9425872,0.000349,2]
[312880201,1706398242245,-59901.94110223,0.00035,2]
[312880202,1706398242254,-185.42607327,0.00035,2]
[312880203,1706398242264,-287.12074472,0.00035,2]
[312880204,1706398242274,-23540.20078597,0.00035,2]
[312880205,1706398242284,-155.18048124,0.00035067,2]
[312880206,1706398242294,-200.0,0.00035072,2]
[312880207,1706398242303,-3829.86922439,0.00035173,7]
[312880208,1706398242312,-2333.9425872,0.00035532,2]
[312880209,1706398242322,-167.0,0.00035594,2]
[312880210,1706398242331,-150.0,0.00035616,2]
[312880211,1706398242340,-1143.58,0.00035616,2]
[312880212,1706398242350,-2279.64,0.00035616,2]
[312880213,1706398242360,-209.48,0.000357,7]
[312880214,1706398242369,-301.3438385,0.00036,4]
[312880215,1706398242379,-634.28,0.00036,7]
[312880216,1706398242388,-344.7,0.00036,7]
[312880217,1706398242397,-1435.59868,0.0003627,2]
[312880218,1706398242407,-1294.84451642,0.0003635,2]
[312880219,1706398242417,-167.0,0.00036696,2]
[312880220,1706398242427,-231.32,0.00036737,2]
[312880221,1706398242436,-2333.9425872,0.00037111,2]
[312880222,1706398242445,-3829.86922439,0.00037627,10]
[312880223,1706398242455,-167.0,0.00037799,2]
[312880224,1706398242464,-1233.0,0.00037843,2]
[312880225,1706398242473,-695.616,0.00037843,2]
[312880226,1706398242484,-1251.0,0.00037843,2]
[312880227,1706398242494,-215.0,0.00037843,2]
[312880228,1706398242503,-998.0,0.00037843,2]
[312880229,1706398242512,-426.0,0.00037843,2]
[312880230,1706398242522,-236.0,0.00037843,2]
[312880231,1706398242532,-1936.0,0.00037843,2]
[312880232,1706398242542,-319.5499989,0.00037897,2]
[312880233,1706398242551,-667011.896125,0.000379,3]
[312880234,1706398242561,-200.0,0.0003826,2]
[312880235,1706398242570,-150.39,0.00038356,2]
[312880236,1706398242579,-2333.9425872,0.00038689,2]
[312880237,1706398242589,-209.48,0.000387,7]
[312880238,1706398242598,-1435.59868,0.0003877,2]
[312880239,1706398242607,-5811.61033757,0.00038777,20]
[312880240,1706398242718,-617.54181197,0.00038777,19]
[312880241,1706398242729,-1279.89712555,0.00038777,19]
[312880242,1706398242739,-6763.34655776,0.00038777,20]
[312880243,1706398242749,-152.93,0.000388,3]
[312880244,1706398242758,-152.93,0.000388,3]
[312880245,1706398242769,-152.93,0.000388,3]
[312880246,1706398242779,-152.93,0.000388,3]
[312880247,1706398242788,-152.93,0.000388,3]
[312880248,1706398242798,-152.93,0.000388,3]
[312880249,1706398242810,-152.93,0.000388,3]
[312880250,1706398242820,-152.93,0.000388,3]
[312880251,1706398242829,-152.93,0.000388,3]
[312880252,1706398242839,-152.93,0.000388,3]
[312880253,1706398242848,-152.93,0.000388,3]
[312880254,1706398242858,-152.93,0.000388,3]
[312880255,1706398242867,-152.93,0.000388,3]
[312880256,1706398242877,-152.93,0.000388,3]
[312880257,1706398242887,-152.93,0.000388,3]
[312880258,1706398242897,-152.93,0.000388,3]
[312880259,1706398242907,-1010.24581647,0.0003888,2]
[312880260,1706398242916,-1010.24581647,0.0003888,2]
[312880261,1706398242925,-1010.24581647,0.0003888,2]
[312880262,1706398242935,-1010.24581647,0.0003888,2]
[312880263,1706398242944,-1010.24581647,0.0003888,2]
[312880264,1706398242953,-167.0,0.00038901,2]
[312880265,1706398242963,-231.32,0.00039001,2]
[312880266,1706398242972,-25126.78494208,0.0004,4]
[312880267,1706398242982,-3829.86922439,0.00040082,14]
[312880268,1706398242991,-1010.24581647,0.00040122,2]
[312880269,1706398243001,-2333.9425872,0.00040268,5]
[312880270,1706398243011,-634.28,0.000403,7]
[312880271,1706398243021,-344.7,0.000403,7]
[312880272,1706398243031,-205.0,0.00040514,10]
[312880273,1706398243040,-751.0,0.00040832,5]
[312880274,1706398243050,-12000.0,0.00041,4]
[312880275,1706398243059,-231.32,0.00041265,2]
[312880276,1706398243069,-408.4947162,0.00041349,7]
[312880277,1706398243078,-2333.9425872,0.00041847,5]
[312880278,1706398243088,-218.49463445,0.00042018,30]
[312880279,1706398243097,-3330.4440539,0.00042018,2]
[312880280,1706398243106,-6000.0,0.00042018,4]
[312880281,1706398243115,-7009.54698711,0.00042018,2]
[312880282,1706398243125,-384.73155794,0.00042018,2]
[312880283,1706398243133,-209.48,0.000421,7]
[312880285,1706398243142,-1047.0,0.000422,7]
[312880286,1706398243151,-3829.86922439,0.00042536,17]
[312880287,1706398243160,-2333.9425872,0.00043426,5]
[312880288,1706398243168,-231.32,0.00043529,2]
[312880289,1706398243177,-1010.24581647,0.00043567,5]
[312880290,1706398243186,-152.93,0.00044,4]
[312880291,1706398243195,-152.93,0.00044,4]
[312880292,1706398243204,-152.93,0.00044,4]
[312880293,1706398243213,-152.93,0.00044,4]
[312880294,1706398243222,-152.93,0.00044,4]
[312880295,1706398243230,-152.93,0.00044,4]
[312880296,1706398243239,-152.93,0.00044,4]
[312880297,1706398243248,-152.93,0.00044,4]
[312880298,1706398243257,-152.93,0.00044,4]
[312880299,1706398243266,-152.93,0.00044,4]
[312880300,1706398243275,-152.93,0.00044,4]
[312880301,1706398243284,-152.93,0.00044,4]
[312880302,1706398243292,-152.93,0.00044,4]
[312880303,1706398243301,-152.93,0.00044,4]
[312880304,1706398243310,-152.93,0.00044,4]
[312880305,1706398243319,-152.93,0.00044,4]
[312880306,1706398243328,-9162.97952279,0.0004475,2]
[312880307,1706398243336,-3829.86922439,0.00044991,20]
[312880309,1706398243346,-4000.00863621,0.00045,30]
[312880311,1706398243355,-155.0,0.00045,2]
[312880313,1706398243364,-24834.8599395,0.00045,30]
[312880315,1706398243373,-160.83571687,0.00045,2]
[312880316,1706398243383,-393.0,0.00045,2]
[312880318,1706398243392,-2333.9425872,0.00045005,5]
[312880320,1706398243401,-231.32,0.00045793,2]
[312880321,1706398243410,-323.14224298,0.00046214,2]
[312880323,1706398243420,-152.0,0.00046567,3]
[312880324,1706398243429,-164.7,0.00046575,15]
[312880325,1706398243438,-2333.9425872,0.00046584,5]
[312880326,1706398243447,-1000.0,0.000466,2]
[312880327,1706398243456,-173.65,0.00046839,10]
[312880328,1706398243465,-1143.58,0.00046849,120]
[312880329,1706398243474,-2279.64,0.00046849,120]
[312880330,1706398243483,-12000.0,0.00047,4]
[312880331,1706398243492,-344.7,0.00047,7]
[312880332,1706398243501,-209.48,0.00047,7]
[312880333,1706398243511,-1010.24581647,0.00047011,8]
[312880334,1706398243520,-344.0,0.000471,30]
[312880335,1706398243529,-1000.0,0.000471,30]
[312880336,1706398243538,-879.0,0.000471,30]
[312880337,1706398243547,-150.0,0.00047123,2]
[312880338,1706398243556,-150.0,0.00047123,2]
[312880339,1706398243566,-419.44,0.00047123,2]
[312880340,1706398243575,-419.44,0.00047123,2]
[312880341,1706398243584,-150.0,0.00047123,2]
[312880342,1706398243593,-419.44,0.00047123,2]
[312880343,1706398243602,-419.44,0.00047123,2]
[312880344,1706398243611,-419.44,0.00047123,2]
[312880345,1706398243620,-419.44,0.00047123,2]
[312880346,1706398243629,-419.44,0.00047123,2]
[312880347,1706398243637,-419.44,0.00047123,2]
[312880348,1706398243646,-419.44,0.00047123,2]
[312880349,1706398243655,-419.44,0.00047123,2]
[312880350,1706398243664,-195.67,0.00047123,2]
[312880351,1706398243673,-419.17,0.00047123,2]
[312880352,1706398243682,-157.0128,0.00047148,28]
[312880353,1706398243691,-750.0,0.00047183,30]
[312880354,1706398243700,-155.18048124,0.00047233,34]
[312880355,1706398243709,-3829.86922439,0.00047445,23]
[312880356,1706398243720,-157.0128,0.00047448,29]
[312880357,1706398243729,-250.06,0.00047497,10]
[312880358,1706398243739,-157.0128,0.00047748,27]
[312880359,1706398243748,-942.96,0.00047808,2]
[312880360,1706398243757,-943.45,0.00047808,2]
[312880361,1706398243767,-402.65,0.00047808,2]
[312880362,1706398243777,-402.65,0.00047808,2]
[312880363,1706398243787,-943.45,0.00047808,2]
[312880364,1706398243796,-402.65,0.00047808,2]
[312880365,1706398243808,-943.45,0.00047808,2]
[312880366,1706398243818,-402.65,0.00047808,2]
[312880367,1706398243828,-150.39,0.00047945,2]
[312880368,1706398243838,-319.5499989,0.00047997,2]
[312880369,1706398243847,-10000.0,0.00048,30]
[312880370,1706398243857,-10000.0,0.00048,30]
[312880371,1706398243866,-10000.0,0.00048,30]
[312880372,1706398243876,-10000.0,0.00048,30]
[312880373,1706398243886,-10000.0,0.00048,30]
[312880374,1706398243895,-10000.0,0.00048,30]
[312880375,1706398243905,-10000.0,0.00048,30]
[312880376,1706398243914,-10000.0,0.00048,30]
[312880377,1706398243923,-10000.0,0.00048,30]
[312880378,1706398243932,-10000.0,0.00048,30]
[312880379,1706398243941,-10000.0,0.00048,30]
[312880380,1706398243950,-10000.0,0.00048,30]
[312880381,1706398243959,-10000.0,0.00048,30]
[312880382,1706398243970,-10000.0,0.00048,30]
[312880383,1706398243979,-10000.0,0.00048,30]
[312880384,1706398243988,-10000.0,0.00048,30]
[312880385,1706398243998,-10000.0,0.00048,30]
[312880386,1706398244007,-10000.0,0.00048,30]
[312880387,1706398244016,-10000.0,0.00048,30]
[312880388,1706398244026,-10000.0,0.00048,30]
[312880389,1706398244035,-10000.0,0.00048,30]
[312880390,1706398244044,-10000.0,0.00048,30]
[312880391,1706398244052,-10000.0,0.00048,30]
[312880392,1706398244061,-10000.0,0.00048,30]
[312880393,1706398244070,-10000.0,0.00048,30]
[312880394,1706398244079,-10000.0,0.00048,30]
[312880395,1706398244088,-10000.0,0.00048,30]
[312880396,1706398244097,-6103.0,0.00048,30]
[312880397,1706398244106,-231.32,0.00048056,2]
[312880398,1706398244115,-157.0128,0.00048148,28]
[312880399,1706398244123,-2333.9425872,0.00048163,5]
[312880400,1706398244132,-157.0128,0.00048448,30]
[312880401,1706398244141,-634.28,0.000485,7]
[312880402,1706398244150,-301.25336037,0.00048645,4]
[312880403,1706398244159,-167.46550336,0.00048645,4]
[312880404,1706398244168,-242.30425329,0.00048645,4]
[312880405,1706398244177,-934.10101204,0.00048645,2]
[312880406,1706398244186,-7152.64958866,0.00048645,5]
[312880407,1706398244195,-156235.59787012,0.00048645,4]
[312880408,1706398244204,-156.96386173,0.00048645,4]
[312880409,1706398244212,-500.0,0.00048646,7]
[312880410,1706398244221,-509.35522682,0.00048646,4]
[312880411,1706398244230,-208.83714383,0.00048646,4]
[312880412,1706398244239,-4789.93090494,0.00048646,4]
[312880413,1706398244247,-220.75699255,0.00048646,7]
[312880414,1706398244256,-378.65294493,0.00048646,7]
[312880415,1706398244265,-166.57017944,0.00048646,2]
[312880416,1706398244274,-764.84211533,0.00048646,2]
[312880417,1706398244283,-13330.21064247,0.00048646,2]
[312880418,1706398244292,-196.74278904,0.00048665,4]
[312880419,1706398244301,-3147.59141379,0.00048665,4]
[312880420,1706398244310,-238.71257934,0.00048665,2]
[312880421,1706398244319,-386.88042025,0.00048665,4]
[312880422,1706398244328,-155.0,0.00048665,4]
[312880423,1706398244338,-158.84571897,0.00048665,4]
[312880424,1706398244347,-171.63288693,0.00048665,4]
[312880425,1706398244356,-487.54545682,0.00048665,4]
[312880426,1706398244365,-9344.3033984,0.00048665,4]
[312880427,1706398244374,-377.41915313,0.00048666,4]
[312880428,1706398244384,-400.55654245,0.00048666,4]
[312880429,1706398244393,-315.71243182,0.00048666,4]
[312880430,1706398244402,-941.08573838,0.00048666,4]
[312880431,1706398244412,-365.78380243,0.00048666,4]
[312880432,1706398244421,-1372.03158576,0.00048666,4]
[312880433,1706398244430,-195.87615889,0.00048666,4]
[312880434,1706398244439,-151.0128,0.00048748,29]
[312880435,1706398244448,-150.55208892,0.000489,2]
[312880436,1706398244457,-150.55208887,0.000489,2]
[312880437,1706398244467,-150.55208887,0.000489,2]
[312880438,1706398244475,-150.55208887,0.000489,2]
[312880439,1706398244484,-150.55208887,0.000489,2]
[312880440,1706398244494,-150.55208887,0.000489,2]
[312880441,1706398244503,-20000.0,0.00049,30]
[312880442,1706398244512,-20000.0,0.00049,30]
[312880443,1706398244522,-250.0,0.00049,41]
[312880444,1706398244531,-1500.0,0.00049052,7]
[312880445,1706398244539,-1500.0,0.0004906,7]
[312880446,1706398244549,-1500.0,0.00049108,7]
[312880447,1706398244558,-1500.0,0.00049116,7]
[312880448,1706398244567,-1500.0,0.0004912,7]
[312880449,1706398244576,-151.0128,0.00049148,29]
[312880450,1706398244585,-150.0,0.00049158,7]
[312880451,1706398244594,-150.0,0.0004916,7]
[312880452,1706398244603,-300.0,0.00049213,7]
[312880453,1706398244612,-1500.0,0.00049224,7]
[312880454,1706398244621,-150.0,0.00049234,7]
[312880455,1706398244724,-150.0,0.00049241,7]
[312880456,1706398244754,-150.0,0.00049247,7]
[312880457,1706398244763,-150.0,0.0004925,7]
[312880458,1706398244772,-150.0,0.0004925,7]
[312880459,1706398244781,-150.0,0.00049251,7]
[312880460,1706398244790,-1500.0,0.00049274,7]
[312880461,1706398244800,-150.0,0.00049279,7]
[312880462,1706398244811,-150.0,0.00049286,7]
[312880463,1706398244820,-1500.0,0.00049296,7]
[312880464,1706398244829,-150.0,0.00049296,7]
[312880465,1706398244838,-1000.0,0.000493,2]
[312880466,1706398244848,-152.93,0.000493,6]
[312880467,1706398244857,-152.93,0.000493,6]
[312880468,1706398244867,-152.93,0.000493,6]
[312880469,1706398244877,-152.93,0.000493,6]
[312880470,1706398244887,-152.93,0.000493,6]
[312880471,1706398244897,-152.93,0.000493,6]
[312880472,1706398244906,-152.93,0.000493,6]
[312880473,1706398244915,-152.93,0.000493,6]
[312880474,1706398244924,-152.93,0.000493,6]
[312880475,1706398244934,-152.93,0.000493,6]
[312880476,1706398244943,-152.93,0.000493,6]
[312880477,1706398244952,-152.93,0.000493,6]
[312880478,1706398244961,-152.93,0.000493,6]
[312880479,1706398244971,-152.93,0.000493,6]
[312880480,1706398244980,-152.93,0.000493,6]
[312880481,1706398244990,-152.93,0.000493,6]
[312880482,1706398244999,-150.0,0.00049301,7]
[312880483,1706398245008,-150.0,0.00049307,7]
[312880484,1706398245017,-150.0,0.00049318,7]
[312880485,1706398245026,-150.0,0.00049327,7]
[312880486,1706398245035,-150.0,0.00049328,7]
[312880487,1706398245044,-150.0,0.00049356,7]
[312880488,1706398245053,-150.0,0.00049379,7]
[312880489,1706398245062,-344.7,0.000494,7]
[312880490,1706398245071,-150.0,0.00049405,7]
[312880491,1706398245080,-150.0,0.00049408,7]
[312880492,1706398245089,-150.0,0.00049423,7]
[312880493,1706398245098,-150.0,0.00049432,7]
[312880494,1706398245107,-150.0,0.00049432,7]
[312880495,1706398245116,-300.0,0.00049444,7]
[312880496,1706398245125,-150.0,0.00049446,7]
[312880497,1706398245133,-151.0128,0.00049448,29]
[312880498,1706398245142,-150.0,0.00049448,7]
[312880499,1706398245151,-150.0,0.00049456,7]
[312880500,1706398245161,-150.0,0.00049465,7]
[312880501,1706398245170,-150.0,0.00049465,7]
[312880502,1706398245179,-150.0,0.00049472,7]
[312880503,1706398245187,-150.0,0.00049482,7]
[312880504,1706398245197,-1500.0,0.00049485,7]
[312880505,1706398245206,-150.0,0.00049486,7]
[312880506,1706398245214,-150.0,0.00049491,7]
[312880507,1706398245224,-1500.0,0.00049494,7]
[312880508,1706398245233,-150.0,0.00049494,7]
[312880509,1706398245242,-150.0,0.00049495,7]
[312880510,1706398245252,-150.0,0.00049497,7]
[312880511,1706398245260,-800.0,0.00049498,10]
[312880512,1706398245269,-800.0,0.00049499,10]
[312880513,1706398245279,-800.0,0.00049499,10]
[312880514,1706398245287,-634.28,0.000495,7]
[312880515,1706398245297,-150.0,0.00049507,7]
[312880516,1706398245306,-166.91230757,0.0004951,7]
[312880517,1706398245315,-150.0,0.0004952,7]
[312880518,1706398245323,-150.0,0.0004952,7]
[312880519,1706398245332,-150.0,0.00049521,7]
[312880520,1706398245341,-150.0,0.00049525,7]
[312880521,1706398245351,-150.0,0.00049526,7]
[312880522,1706398245360,-300.0,0.00049531,7]
[312880523,1706398245369,-300.0,0.00049546,7]
[312880524,1706398245378,-150.0,0.0004955,7]
[312880525,1706398245387,-150.0,0.00049557,7]
[312880526,1706398245396,-150.0,0.00049562,7]
[312880527,1706398245405,-150.0,0.0004957,7]
[312880528,1706398245414,-150.0,0.00049588,7]
[312880529,1706398245423,-300.0,0.00049589,30]
[312880530,1706398245432,-150.0,0.00049589,30]
[312880531,1706398245441,-300.0,0.00049589,30]
[312880532,1706398245450,-150.0,0.00049589,60]
[312880533,1706398245459,-150.0,0.00049589,30]
[312880534,1706398245467,-150.0,0.00049589,30]
[312880535,1706398245476,-433.98,0.00049589,30]
[312880536,1706398245485,-150.0,0.00049589,60]
[312880537,1706398245494,-150.0,0.00049589,30]
[312880538,1706398245503,-150.0,0.00049589,30]
[312880539,1706398245512,-150.0,0.00049589,30]
[312880540,1706398245521,-340.87,0.00049589,30]
[312880541,1706398245530,-150.0,0.00049589,30]
[312880542,1706398245539,-150.0,0.00049589,60]
[312880543,1706398245547,-150.0,0.00049589,30]
[312880544,1706398245557,-150.0,0.00049589,30]
[312880545,1706398245565,-150.0,0.00049589,30]
[312880546,1706398245574,-340.87,0.00049589,30]
[312880547,1706398245583,-150.0,0.00049589,30]
[312880548,1706398245592,-150.0,0.00049589,60]
[312880549,1706398245601,-150.0,0.00049589,30]
[312880550,1706398245610,-150.0,0.00049589,30]
[312880551,1706398245619,-340.87,0.00049589,30]
[312880552,1706398245628,-150.0,0.00049589,30]
[312880553,1706398245637,-340.87,0.00049589,30]
[312880554,1706398245646,-150.0,0.00049589,30]
[312880555,1706398245655,-150.0,0.00049589,30]
[312880556,1706398245663,-150.0,0.00049589,30]
[312880557,1706398245672,-838.34,0.00049589,30]
[312880558,1706398245681,-150.0,0.00049589,30]
[312880559,1706398245690,-419.44,0.00049589,30]
[312880560,1706398245699,-150.0,0.00049589,30]
[312880561,1706398245708,-150.0,0.00049589,30]
[312880562,1706398245717,-340.87,0.00049589,30]
[312880563,1706398245727,-419.44,0.00049589,30]
[312880564,1706398245736,-150.0,0.00049589,30]
[312880565,1706398245746,-419.44,0.00049589,30]
[312880566,1706398245755,-150.0,0.00049589,30]
[312880567,1706398245764,-340.87,0.00049589,30]
[312880568,1706398245773,-419.44,0.00049589,30]
[312880569,1706398245782,-414.13,0.00049589,30]
[312880570,1706398245791,-150.0,0.00049589,30]
[312880571,1706398245801,-419.44,0.00049589,30]
[312880572,1706398245812,-150.0,0.00049589,30]
[312880573,1706398245822,-340.87,0.00049589,30]
[312880574,1706398245831,-419.44,0.00049589,30]
[312880575,1706398245840,-150.0,0.00049589,30]
[312880576,1706398245850,-419.44,0.00049589,30]
[312880577,1706398245860,-340.87,0.00049589,30]
[312880578,1706398245869,-150.0,0.00049589,30]
[312880579,1706398245878,-340.87,0.00049589,30]
[312880580,1706398245889,-419.44,0.00049589,30]
[312880581,1706398245899,-419.44,0.00049589,30]
[312880582,1706398245908,-150.0,0.00049589,30]
[312880583,1706398245917,-340.87,0.00049589,30]
[312880584,1706398245926,-150.0,0.00049589,30]
[312880585,1706398245935,-419.44,0.00049589,30]
[312880586,1706398245944,-340.87,0.00049589,30]
[312880587,1706398245953,-340.87,0.00049589,30]
[312880588,1706398245963,-419.44,0.00049589,30]
[312880589,1706398245972,-300.0,0.00049589,30]
[312880590,1706398245981,-150.0,0.00049592,7]
[312880591,1706398245991,-150.0,0.00049613,7]
[312880592,1706398246001,-150.0,0.00049617,7]
[312880593,1706398246010,-150.0,0.00049619,7]
[312880594,1706398246019,-150.0,0.0004964,7]
[312880595,1706398246028,-150.0,0.0004964,7]
[312880596,1706398246038,-150.0,0.00049649,7]
[312880597,1706398246047,-150.0,0.0004965,7]
[312880598,1706398246056,-150.0,0.0004966,7]
[312880599,1706398246066,-150.0,0.00049664,7]
[312880600,1706398246075,-300.0,0.00049665,7]
[312880601,1706398246084,-1500.0,0.00049667,7]
[312880602,1706398246093,-1426.28501521,0.0004967,7]
[312880603,1706398246102,-150.0,0.00049675,7]
[312880604,1706398246111,-150.0,0.00049681,7]
[312880605,1706398246120,-208.39,0.0004969,10]